bitfinex/quotes_ETHUSD_20241204
["timestamp","ask_amount","ask_price","bid_price","bid_amount"]
[1733285242593,0.25483058,3671.8,3671.2,0.8101]
[1733285242801,0.25483058,3671.7,3671.2,0.8101]
[1733285243110,1.64652844,3671.9,3671.2,0.8101]
[1733285243340,0.7716551,3671.8,3671.2,0.8101]
[1733285243502,1.17665767,3671.9,3671.2,0.8101]
[1733285243698,0.25479753,3671.8,3671.2,0.8101]
[1733285243902,1.17665767,3671.9,3671.2,0.8101]
[1733285244207,0.25479409,3671.8,3671.2,0.8101]
[1733285244405,1.17665767,3671.9,3671.2,0.8101]
[1733285244628,0.25476064,3671.8,3671.2,0.8101]
[1733285245035,1.17665767,3671.9,3671.2,0.8101]
[1733285245333,0.45230814,3671.8,3671.2,0.8101]
[1733285245510,0.25476237,3671.7,3671.2,0.8101]
[1733285245706,0.25476237,3671.6,3671.2,0.8101]
[1733285245911,0.19754577,3671.8,3671.2,0.8101]
[1733285246308,0.25475164,3671.7,3671.2,0.8101]
[1733285246513,0.25475164,3671.6,3671.2,0.8101]
[1733285246752,0.43522651,3671.7,3671.2,0.8101]
[1733285246922,0.25474158,3671.6,3671.2,0.8101]
[1733285247254,0.43522651,3671.7,3671.2,0.8101]
[1733285247442,0.25473056,3671.6,3671.1,0.53459839]
[1733285247676,0.8019,3671.6,3671.1,0.53459839]
[1733285247876,0.43522651,3671.7,3671.1,0.53459839]
[1733285248174,0.43522651,3671.7,3671.1,3.25855839]
[1733285248379,0.19754577,3671.8,3671.1,0.53459839]
[1733285248875,0.19754577,3671.8,3671.2,0.7689]
[1733285249094,1.17665767,3671.9,3671.2,3.49277]
[1733285249378,0.25469131,3671.8,3671.2,3.49277]
[1733285249563,1.17665767,3671.9,3671.2,3.49277]
[1733285249763,0.25468676,3671.8,3671.2,3.49277]
[1733285250078,0.25468974,3671.7,3671.2,3.49277]
[1733285250374,2.72302,3672.4,3671.2,3.49277]
[1733285250375,0.25468697,3671.8,3671.5,0.7685]
[1733285250550,0.2546841,3672.3,3671.5,0.7685]
[1733285250871,0.2546841,3672.2,3671.9,0.7685]
[1733285251075,0.25464448,3672.5,3671.9,0.7685]
[1733285251250,1.17665767,3672.6,3672.1,0.55099436]
[1733285251446,0.25457247,3672.5,3672.1,0.55099436]
[1733285251780,1.17665767,3672.6,3672.1,0.55099436]
[1733285251944,0.25458752,3672.5,3672.1,0.55099436]
[1733285252162,1.17665767,3672.6,3672.1,0.55099436]
[1733285252357,0.25454462,3672.5,3672.1,0.55099436]
[1733285252694,1.17665767,3672.6,3672.1,0.55099436]
[1733285252868,0.25454903,3672.5,3672.1,0.55099436]
[1733285253038,1.17665767,3672.6,3672.1,0.55099436]
[1733285253346,0.25454863,3672.5,3672.2,0.7712]
[1733285253539,0.25454863,3672.4,3672.2,0.7712]
[1733285253874,0.25454863,3672.5,3672.2,0.7712]
[1733285254074,1.17665767,3672.6,3672.2,0.7712]
[1733285254281,0.25453556,3672.5,3672.2,0.7712]
[1733285254637,1.17665767,3672.6,3672.2,0.7712]
[1733285254859,0.25453617,3672.5,3672.2,0.7712]
[1733285255177,1.17665767,3672.6,3672.2,0.7712]
[1733285255379,0.25454841,3672.5,3672.2,0.7712]
[1733285255695,0.25454493,3672.5,3672.2,0.7712]
[1733285255899,1.17665767,3672.6,3672.2,0.7712]
[1733285256042,0.25454641,3672.5,3672.2,0.7712]
[1733285256245,1.17665767,3672.6,3672.2,0.7712]
[1733285256451,0.25456715,3672.5,3672.2,0.7712]
[1733285256738,1.17665767,3672.6,3672.2,0.7712]
[1733285256954,0.2545725,3672.5,3672.2,0.7712]
[1733285257256,1.17665767,3672.6,3672.2,0.7712]
[1733285257885,1.17665767,3672.9,3672.2,0.7712]
[1733285258050,0.25459156,3672.8,3672.2,1.17574144]
[1733285258242,0.25459156,3672.7,3672.2,1.17574144]
[1733285258443,0.25459156,3672.6,3672.2,1.17574144]
[1733285258670,0.25459156,3672.8,3672.2,1.17574144]
[1733285258868,0.25459156,3672.7,3672.2,0.7712]
[1733285259065,1.17665767,3672.9,3672.2,0.7712]
[1733285259268,0.25453804,3672.8,3672.2,0.7712]
[1733285259494,1.17665767,3672.9,3672.2,0.7712]
[1733285259495,0.25453804,3672.7,3672.2,0.7712]
[1733285259783,1.17665767,3672.9,3672.2,0.7712]
[1733285259968,0.25453803,3672.8,3672.2,0.7712]
[1733285260169,0.25453803,3672.7,3672.2,0.7712]
[1733285260379,1.17665767,3672.9,3672.2,0.7712]
[1733285260545,0.25452474,3672.8,3672.2,0.7712]
[1733285260746,0.25452474,3672.7,3672.2,0.7712]
[1733285260944,1.17665767,3672.9,3672.2,0.7712]
[1733285261260,0.25452696,3672.8,3672.2,0.7712]
[1733285261463,0.25452696,3672.7,3672.2,0.7712]
[1733285261652,1.17665767,3672.9,3672.2,0.7712]
[1733285261858,0.25452681,3672.8,3672.2,0.7712]
[1733285262182,0.25452681,3672.7,3672.2,0.7712]
[1733285262386,1.17665767,3672.9,3672.2,0.7712]
[1733285262569,0.25453804,3672.8,3672.2,0.7712]
[1733285262739,0.25453804,3672.7,3672.2,0.7712]
[1733285263098,1.17665767,3672.9,3672.2,0.7712]
[1733285263259,0.25455518,3672.8,3672.2,0.7712]
[1733285263590,0.25455516,3672.7,3672.2,0.7712]
[1733285263842,1.17665767,3672.9,3672.2,0.7712]
[1733285264082,0.25455415,3672.8,3672.2,0.7712]
[1733285264381,0.25455415,3672.7,3672.2,0.7712]
[1733285264565,0.25455415,3672.6,3672.2,0.7712]
[1733285264768,1.17665767,3672.9,3672.2,0.7712]
[1733285264939,0.25459104,3672.8,3672.2,0.7712]
[1733285265256,0.25459104,3672.7,3672.2,0.7712]
[1733285265453,0.25459104,3672.6,3672.2,0.7712]
[1733285265659,1.64825144,3672.9,3672.2,0.7712]
[1733285265886,0.25462623,3672.8,3672.2,0.7712]
[1733285266084,0.25462623,3672.7,3672.2,0.7712]
[1733285266246,0.25462623,3672.6,3672.2,0.7712]
[1733285266443,0.25465469,3672.5,3672.2,0.7712]
[1733285266658,1.64825144,3672.9,3672.2,0.7712]
[1733285266872,0.25465466,3672.8,3672.2,0.7712]
[1733285267097,1.64825144,3672.9,3672.2,0.7712]
[1733285267384,0.25465341,3672.8,3672.3,2.72308]
[1733285267589,5.25,3674.0,3672.6,0.766]
[1733285267590,1.17665767,3673.5,3672.6,0.766]
[1733285267772,0.25465472,3673.4,3673.0,0.766]
[1733285267977,1.17665767,3673.8,3673.1,0.348862]
[1733285268282,0.25462418,3673.7,3673.0,0.766]
[1733285268443,1.17665767,3673.8,3673.0,0.766]
[1733285268444,0.25462418,3673.6,3673.0,3.48856]
[1733285268644,0.25462418,3673.5,3673.0,3.48856]
[1733285268860,1.17665767,3673.8,3673.0,3.48856]
[1733285269066,0.25451234,3673.7,3673.0,0.766]
[1733285269284,0.25451234,3673.6,3673.0,0.766]
[1733285269586,0.25451234,3673.5,3673.0,0.766]
[1733285269792,0.25451234,3673.7,3673.3,0.55041721]
[1733285269991,1.17665767,3673.5,3673.0,0.766]
[1733285270145,1.43117001,3673.5,3673.0,0.766]
[1733285270492,1.17665767,3673.5,3673.1,0.53973479]
[1733285271588,1.43101728,3673.5,3673.1,0.53973479]
[1733285271887,1.17665767,3673.5,3673.1,0.53973479]
[1733285272277,1.43101728,3673.5,3673.0,0.766]
[1733285272450,1.17665767,3673.5,3673.0,0.766]
[1733285272887,1.17665767,3673.5,3673.0,1.32186742]
[1733285273050,1.43101728,3673.5,3673.0,1.32186742]
[1733285273248,1.17665767,3673.5,3673.0,1.32186742]
[1733285273652,1.03195961,3673.4,3672.7,0.7621]
[1733285274093,1.03195961,3673.4,3672.9,0.55243379]
[1733285274457,0.7776,3673.4,3672.9,0.55243379]
[1733285274952,1.17665767,3673.2,3672.9,0.55243379]
[1733285275154,0.7588,3673.0,3672.9,0.55243379]
[1733285275354,0.25435961,3673.1,3672.9,0.55243379]
[1733285275659,0.39746134,3673.1,3672.9,0.55243379]
[1733285277268,0.14310173,3673.1,3672.9,0.55243379]
[1733285277474,0.25446995,3673.0,3672.9,0.55243379]
[1733285277811,0.14310173,3673.1,3672.9,0.55243379]
[1733285278022,0.39755964,3673.1,3672.9,0.55243379]
[1733285278176,0.25452021,3673.0,3672.9,0.55243379]
[1733285278380,0.39755964,3673.1,3672.9,0.55243379]
[1733285278615,0.65208816,3673.1,3672.9,0.55243379]
[1733285278925,0.25445791,3673.1,3672.9,0.55243379]
[1733285279976,2.72284,3672.7,3671.5,2.72362]
[1733285280172,1.17665767,3672.3,3671.8,0.7865]
[1733285280412,0.8125,3672.2,3671.3,0.7865]
[1733285280610,1.17665767,3672.0,3671.3,0.7865]
[1733285280920,1.17665767,3672.0,3671.3,1.34279282]
[1733285281292,2.97814144,3671.9,3671.0,1.0434]
[1733285281494,2.72338,3671.9,3671.0,1.420166]
[1733285281922,2.72338,3671.9,3671.1,0.54697313]
[1733285282418,2.72346,3671.8,3671.0,1.420166]
[1733285282578,2.72346,3671.8,3671.0,1.0434]
[1733285282905,3.89996767,3672.0,3671.0,1.60034684]
[1733285283101,3.89996767,3672.0,3671.0,1.32794684]
[1733285283304,1.17665767,3671.7,3670.5,0.2724]
[1733285283617,0.8013,3671.0,3670.1,0.825]
[1733285283780,1.14223045,3671.0,3670.1,0.825]
[1733285283987,2.72428,3670.7,3669.4,0.8284]
[1733285284237,2.60800455,3670.9,3669.4,0.8284]
[1733285284516,2.72451,3670.4,3669.7,0.54195903]
[1733285285020,2.72435,3670.6,3669.7,0.54195903]
[1733285285599,2.72442,3670.5,3669.7,0.54195903]
[1733285286330,0.34093045,3670.8,3669.4,0.8284]
[1733285286331,0.811,3670.4,3669.4,0.8284]
[1733285286913,2.72459,3670.3,3669.4,0.8284]
[1733285287333,0.811,3670.4,3669.4,1.37586873]
[1733285287630,2.72466,3670.2,3669.4,1.37586873]
[1733285289834,2.72459,3670.3,3669.4,1.37586873]
[1733285291090,0.811,3670.4,3669.4,1.37586873]
[1733285291291,0.811,3670.4,3669.5,0.02724914]
[1733285291552,0.811,3670.4,3669.4,1.7235703]
[1733285292043,3.53551,3670.4,3669.4,1.37586873]
[1733285297445,0.811,3670.4,3669.4,1.37586873]
[1733285297868,0.811,3670.4,3669.4,0.8284]
[1733285298154,0.811,3670.4,3668.8,0.7645]
[1733285298155,2.72492,3669.9,3668.8,0.7645]
[1733285298314,3.25823246,3669.8,3668.8,0.7645]
[1733285298755,3.25823246,3669.8,3669.1,0.54500876]
[1733285298925,4.07053246,3669.8,3669.1,0.54500876]
[1733285299131,2.72509,3669.6,3668.8,0.7645]
[1733285299829,0.40706825,3669.6,3668.9,0.55248136]
[1733285300028,2.72524,3669.4,3668.9,0.55248136]
[1733285301129,0.40706825,3669.6,3668.9,0.55248136]
[1733285301344,1.34559246,3669.8,3669.0,0.7704]
[1733285301629,3.0,3670.2,3669.0,0.7704]
[1733285302046,2.72481,3670.0,3669.0,0.7704]
[1733285302249,2.60800455,3670.0,3669.0,0.7704]
[1733285302664,5.33285455,3670.0,3669.0,0.7704]
[1733285303427,5.33285455,3670.0,3669.0,1.17590837]
[1733285303646,2.60800455,3670.0,3669.0,1.17590837]
[1733285303828,2.60800455,3670.0,3669.0,3.49589]
[1733285304185,0.8238,3670.4,3668.9,0.55248136]
[1733285304320,3.0,3670.6,3669.5,3.48196]
[1733285304513,5.33234455,3670.7,3669.5,3.48196]
[1733285304514,2.60800455,3670.7,3669.5,3.48196]
[1733285304928,5.33228455,3670.7,3669.5,3.48196]
[1733285305264,2.72435,3670.6,3669.5,0.7568]
[1733285305822,3.0,3670.5,3669.5,0.7568]
[1733285306022,3.83323546,3670.5,3669.5,0.7568]
[1733285306420,2.72459,3670.3,3669.5,0.7568]
[1733285306650,2.72466,3670.2,3669.5,0.7568]
[1733285307047,2.72473,3670.1,3669.5,0.7568]
[1733285307364,3.0,3670.2,3668.8,0.7716]
[1733285307365,2.72489,3669.9,3668.8,0.7716]
[1733285307532,2.72489,3669.9,3669.2,0.55023701]
[1733285308640,2.60800455,3669.9,3669.2,0.55023701]
[1733285308825,2.72509,3669.6,3669.2,0.55023701]
[1733285309025,0.7938,3669.7,3669.2,0.55023701]
[1733285309026,2.72516,3669.5,3669.2,0.55023701]
[1733285309257,0.25442374,3669.4,3669.2,0.55023701]
[1733285309462,2.72516,3669.5,3669.2,0.55023701]
[1733285309765,3.33156349,3669.4,3668.8,0.7716]
[1733285309934,2.72524,3669.4,3668.8,0.7716]
[1733285310871,2.72524,3669.4,3668.8,1.31122329]
[1733285311254,2.72533,3669.3,3668.8,0.53962329]
[1733285311454,2.72534,3669.3,3668.8,0.53962329]
[1733285311776,0.272534,3669.2,3668.8,0.53962329]
[1733285313069,2.72532,3669.3,3668.8,0.53962329]
[1733285313278,0.254909,3669.2,3668.8,0.53962329]
[1733285313429,0.254909,3669.1,3668.8,0.53962329]
[1733285313773,0.254909,3669.0,3668.8,0.53962329]
[1733285313938,2.72532,3669.3,3668.8,0.53962329]
[1733285314132,2.98030255,3669.2,3668.8,0.53962329]
[1733285314328,0.25491255,3669.1,3668.8,0.53962329]
[1733285314528,0.25491255,3669.0,3668.8,0.53962329]
[1733285314765,2.72539,3669.2,3668.8,0.53962329]
[1733285314972,0.25494442,3669.1,3668.8,0.53962329]
[1733285315143,0.25494442,3669.0,3668.8,0.53962329]
[1733285315383,2.72539,3669.2,3668.8,0.53962329]
[1733285315534,0.25493516,3668.9,3668.8,0.53962329]
[1733285316166,2.98054516,3668.9,3668.8,0.53962329]
[1733285316373,2.98054516,3668.9,3668.7,0.00654234]
[1733285316374,2.72568,3668.8,3668.7,0.00654234]
[1733285316547,5.58861971,3668.8,3668.7,0.00654234]
[1733285318175,2.86293971,3668.8,3668.7,0.00654234]
[1733285318555,5.58861971,3668.8,3668.7,0.00654234]
[1733285318889,5.58842274,3668.8,3668.7,0.00654234]
[1733285319215,5.96821703,3668.8,3668.7,0.00654234]
[1733285320679,8.96821703,3668.8,3668.7,0.00654234]
[1733285324844,6.24253703,3668.8,3668.7,0.00654234]
[1733285325961,6.2422691,3668.8,3668.7,0.00654234]
[1733285327785,8.9679491,3668.8,3668.7,0.00654234]
[1733285329998,9.7628491,3668.8,3668.7,0.00654234]
[1733285330166,13.7628491,3668.8,3668.7,0.00654234]
[1733285330767,13.5083754,3668.8,3668.7,0.00654234]
[1733285330976,13.76288972,3668.8,3668.7,0.00654234]
[1733285331353,13.5083754,3668.8,3668.7,0.00654234]
[1733285331470,13.76287957,3668.8,3668.7,0.00654234]
[1733285332619,9.76287957,3668.8,3668.7,0.00654234]
[1733285333638,9.5083754,3668.8,3668.7,0.00654234]
[1733285333818,9.76291626,3668.8,3668.7,0.00654234]
[1733285337324,13.76291626,3668.8,3668.7,0.00654234]
[1733285337518,13.76291626,3668.8,3668.7,0.7435469]
[1733285339004,4.25454086,3668.8,3668.7,0.7435469]
[1733285339215,0.25454086,3668.8,3668.7,0.7435469]
[1733285339526,0.28498985,3668.9,3668.7,0.7435469]
[1733285339933,2.60800455,3669.2,3668.7,0.7435469]
[1733285340135,0.25503378,3669.1,3668.7,0.7435469]
[1733285340430,0.25506688,3669.0,3668.7,1.17041859]
[1733285340591,2.60800455,3669.2,3668.7,1.17041859]
[1733285340923,0.25506624,3669.1,3668.7,1.17041859]
[1733285341119,0.25506624,3669.0,3668.7,0.7435469]
[1733285341426,0.25506624,3668.9,3668.7,0.7435469]
[1733285341692,2.60800455,3669.2,3668.7,0.7435469]
[1733285341834,0.25511551,3669.1,3668.7,0.7435469]
[1733285342045,0.25511551,3669.0,3668.7,0.7435469]
[1733285342239,2.60800455,3669.2,3668.7,0.7435469]
[1733285342412,0.25515288,3669.1,3668.7,0.7435469]
[1733285342619,0.25515288,3669.0,3668.7,0.7435469]
[1733285342823,2.72532,3669.3,3668.7,0.7435469]
[1733285343121,0.25515207,3669.2,3668.7,0.7435469]
[1733285343322,0.25515207,3669.1,3668.7,0.7435469]
[1733285343647,0.25515207,3669.0,3668.8,0.8244]
[1733285343851,0.25515207,3668.9,3668.8,0.8244]
[1733285348065,5.33316455,3669.6,3668.8,0.8244]
[1733285348271,0.25517852,3669.5,3668.8,0.8244]
[1733285348441,0.25517852,3669.4,3668.8,0.8244]
[1733285348629,0.25517852,3669.3,3669.0,0.798]
[1733285348824,3.0,3669.7,3669.0,0.798]
[1733285349021,0.28492802,3669.9,3669.0,0.798]
[1733285349022,0.25516409,3669.6,3669.0,0.798]
[1733285349248,2.98032409,3669.5,3669.0,0.798]
[1733285349454,0.25516409,3669.4,3669.0,0.798]
[1733285349667,0.25516409,3669.3,3669.0,0.798]
[1733285349881,2.72516,3669.5,3669.0,0.798]
[1733285350355,0.25509473,3669.4,3669.0,0.798]
[1733285350563,3.0,3669.7,3669.0,0.798]
[1733285350759,0.25503777,3669.6,3669.0,0.798]
[1733285350953,0.25503777,3669.5,3669.0,0.798]
[1733285351271,0.25503777,3669.4,3669.0,0.798]
[1733285351437,2.72502,3669.7,3669.0,0.95215469]
[1733285351776,0.25499544,3669.6,3669.0,0.95215469]
[1733285351943,0.25499544,3669.5,3669.0,0.95215469]
[1733285352127,2.72502,3669.7,3669.0,0.95215469]
[1733285352329,0.25495076,3669.6,3669.0,0.95215469]
[1733285352664,0.25495076,3669.5,3669.0,0.798]
[1733285352995,0.25495076,3669.4,3669.0,0.798]
[1733285353141,2.72517,3669.5,3669.0,0.798]
[1733285353493,0.25492401,3669.4,3669.0,0.798]
[1733285353636,3.90298625,3669.5,3669.0,0.798]
[1733285353838,0.25492425,3669.4,3669.0,0.798]
[1733285354131,3.90298625,3669.5,3669.0,0.798]
[1733285354366,2.72527,3669.4,3669.0,0.798]
[1733285354873,1.17781625,3669.5,3669.0,0.244403]
[1733285355167,2.7251,3669.6,3669.0,0.244403]
[1733285355342,0.25487073,3669.5,3669.0,0.244403]
[1733285355555,4.67345625,3669.8,3669.0,0.244403]
[1733285355727,0.25487018,3669.7,3668.7,0.7435469]
[1733285355929,0.25487018,3669.6,3668.7,3.4692569]
[1733285356144,0.25487018,3669.5,3668.7,3.4692569]
[1733285356447,0.25487018,3669.7,3668.7,2.9156599]
[1733285356631,0.25487018,3669.6,3668.8,0.29156599]
[1733285356869,1.17781625,3669.8,3668.8,0.29156599]
[1733285357031,0.25483783,3669.7,3668.8,0.29156599]
[1733285357267,1.17781625,3669.8,3668.8,0.29156599]
[1733285357475,0.25481842,3669.7,3668.7,2.65362889]
[1733285357673,0.25481842,3669.6,3668.8,0.26536289]
[1733285357839,3.00980802,3669.9,3668.9,0.8218]
[1733285358033,0.25481647,3669.8,3668.9,0.8218]
[1733285358235,0.25481647,3669.7,3668.9,0.8218]
[1733285358435,0.25481647,3669.6,3669.2,0.8218]
[1733285358679,0.778,3669.6,3668.2,2.72608]
[1733285358882,2.72524,3669.4,3668.7,0.5458265]
[1733285359740,2.72524,3669.4,3668.3,2.72604]
[1733285360073,0.33876924,3669.5,3668.7,0.53589742]
[1733285360241,3.5031,3669.6,3668.7,0.53589742]
[1733285360461,0.2548506,3669.5,3668.7,0.53589742]
[1733285360659,3.5031,3669.6,3668.7,0.53589742]
[1733285360866,0.25485062,3669.5,3668.7,0.53589742]
[1733285361097,3.5031,3669.6,3668.7,0.53589742]
[1733285361408,0.25485444,3669.5,3668.7,0.53589742]
[1733285361567,4.41536404,3669.6,3668.8,0.3922]
[1733285361901,0.25487215,3669.5,3668.8,0.3922]
[1733285362059,4.41536404,3669.6,3668.8,0.3922]
[1733285362262,0.25490333,3669.5,3668.8,0.3922]
[1733285362505,2.72516,3669.5,3668.8,0.3922]
[1733285363258,0.25494142,3669.4,3668.8,0.3922]
[1733285363461,2.60969241,3669.7,3668.7,0.45891542]
[1733285363661,0.25493717,3669.6,3668.7,0.45891542]
[1733285363903,0.25493717,3669.5,3668.7,3.18464542]
[1733285364080,0.25493717,3669.5,3668.8,0.31846454]
[1733285364278,0.28492802,3669.9,3668.7,0.45891542]
[1733285364590,0.2549647,3669.8,3668.7,3.18465542]
[1733285364907,0.2549647,3669.7,3668.7,3.18465542]
[1733285365070,0.2549647,3669.6,3668.8,2.72567]
[1733285365407,0.2549647,3669.5,3668.8,2.72567]
[1733285365576,0.28492802,3669.9,3668.9,0.31845854]
[1733285365905,2.97995964,3669.8,3668.9,0.31845854]
[1733285366068,0.25500964,3669.7,3668.7,0.45891542]
[1733285366270,2.98012964,3669.6,3668.7,0.45891542]
[1733285366605,0.25500964,3669.5,3668.7,0.45891542]
[1733285366907,0.25500964,3669.4,3668.7,0.45891542]
[1733285367206,0.25515929,3669.3,3668.7,0.45891542]
[1733285367426,2.72512,3669.6,3668.7,0.45891542]
[1733285367584,0.25515915,3669.5,3668.7,0.45891542]
[1733285367815,0.8028,3669.8,3668.7,0.77739696]
[1733285367978,0.25515275,3669.4,3668.7,0.77739696]
[1733285368177,3.52774,3669.8,3668.7,0.77739696]
[1733285368383,0.25524601,3669.7,3668.7,0.77739696]
[1733285368596,0.25524601,3669.6,3668.7,0.77739696]
[1733285368802,0.25524601,3669.5,3668.8,0.3503297]
[1733285369112,0.25524601,3669.4,3668.7,0.45891542]
[1733285369276,0.28492802,3669.9,3668.8,2.72564]
[1733285369474,0.25530838,3669.8,3668.8,2.72564]
[1733285369701,0.25530838,3669.7,3668.8,2.72564]
[1733285370029,0.25530838,3669.6,3668.8,2.72564]
[1733285370307,0.25530838,3669.5,3668.9,0.31845554]
[1733285370510,3.43249241,3670.1,3668.9,3.04405554]
[1733285370671,7.86234022,3671.0,3668.7,0.45891542]
[1733285370672,0.25529,3670.0,3669.0,0.02725164]
[1733285370879,0.25529,3669.9,3668.7,0.45891542]
[1733285371095,0.7765,3670.7,3668.8,0.2]
[1733285371413,0.25515109,3670.6,3669.6,2.72508]
[1733285371568,0.25515109,3670.6,3669.1,2.72546]
[1733285371569,0.25515109,3670.5,3669.8,2.72493]
[1733285371768,0.25515109,3670.4,3670.1,3.25798532]
[1733285371969,0.28455825,3671.1,3670.2,2.72463]
[1733285372304,0.25513117,3671.0,3670.2,2.72463]
[1733285372466,0.25513117,3670.9,3670.2,3.05042153]
[1733285372669,0.28455825,3671.1,3670.2,3.05042153]
[1733285372872,0.25489915,3671.0,3670.2,3.05042153]
[1733285373075,0.25489915,3670.9,3670.2,3.05042153]
[1733285373276,0.28455825,3671.1,3670.2,0.32579153]
[1733285373519,0.25473479,3671.0,3670.3,2.72456]
[1733285373704,0.25473479,3670.9,3670.3,2.72456]
[1733285373917,0.28455825,3671.1,3670.7,0.53268527]
[1733285374203,0.7647,3671.3,3670.7,0.53268527]
[1733285374424,0.25459651,3671.2,3670.7,0.53268527]
[1733285374583,0.25459651,3671.1,3670.7,0.53268527]
[1733285374921,0.25459646,3671.2,3670.7,0.53268527]
[1733285375125,0.25459646,3671.1,3670.0,2.72474]
[1733285375424,0.25449653,3671.2,3670.1,0.272474]
[1733285375630,2.97846653,3671.1,3670.1,0.272474]
[1733285375789,0.25449653,3671.0,3669.9,2.72486]
[1733285376299,0.7647,3671.3,3669.4,5.70048517]
[1733285376300,3.48853,3671.3,3670.4,0.5405759]
[1733285376503,0.25444236,3671.2,3670.4,0.5405759]
[1733285376684,0.25444236,3671.1,3670.8,2.72412]
[1733285376889,0.25440052,3671.7,3670.9,2.72411]
[1733285377134,0.7657,3671.8,3670.9,2.72411]
[1733285377786,0.25440052,3672.0,3671.0,0.02723692]
[1733285377986,0.25440052,3672.0,3671.1,2.7239]
[1733285378223,0.7839,3672.1,3671.4,0.55219122]
[1733285379092,0.7839,3672.1,3671.0,2.72404]
[1733285379292,1.7494855,3672.1,3671.0,2.72404]
[1733285379630,1.7494855,3672.1,3671.3,0.55851693]
[1733285380482,0.7839,3672.1,3671.3,0.55851693]
[1733285381334,3.50715,3672.1,3670.7,2.72422]
[1733285381490,3.50715,3672.1,3670.3,5.33425241]
[1733285381491,3.50715,3672.1,3670.8,2.72418]
[1733285381892,3.50715,3672.1,3671.2,0.55738625]
[1733285382235,0.7839,3672.1,3671.2,0.55738625]
[1733285382533,0.7839,3672.1,3671.2,0.88553588]
[1733285386028,0.7839,3672.1,3671.3,0.02723485]
[1733285386336,0.7839,3672.1,3671.2,3.60943588]
[1733285388421,0.7839,3672.1,3671.2,0.88553588]
[1733285388614,0.7839,3672.1,3671.2,0.55738625]
[1733285388811,0.7839,3672.1,3671.2,3.28126625]
[1733285389135,0.7839,3672.1,3671.3,2.72382]
[1733285394044,0.7839,3672.1,3671.2,0.55738625]
[1733285395104,3.50715,3672.1,3671.2,0.55738625]
[1733285395304,3.50861,3672.0,3671.2,0.55738625]
[1733285395503,0.7853,3672.0,3671.2,0.55738625]
[1733285396343,3.50861,3672.0,3671.2,0.55738625]
[1733285397620,0.8096,3671.9,3670.8,2.72419]
[1733285398042,0.8096,3671.9,3671.2,0.54092805]
[1733285398378,1.06376641,3671.9,3671.2,0.54092805]
[1733285398862,0.8096,3671.9,3671.2,0.54092805]
[1733285399065,0.8096,3671.9,3671.2,0.86741686]
[1733285399444,0.25437291,3671.8,3671.2,0.86741686]
[1733285399676,0.8096,3671.9,3671.2,0.54092805]
[1733285399876,0.25437898,3671.8,3671.2,0.54092805]
[1733285400193,0.25463579,3671.7,3671.2,0.54092805]
[1733285400331,0.8096,3671.9,3671.2,0.54092805]
[1733285400532,0.25463531,3671.8,3671.2,0.54092805]
[1733285400769,0.25463531,3671.7,3671.2,0.54092805]
[1733285401070,0.8096,3671.9,3671.2,0.54092805]
[1733285401273,0.25481228,3671.8,3671.2,0.54092805]
[1733285401482,0.25481228,3671.7,3671.2,0.54092805]
[1733285401811,0.25481228,3671.6,3671.2,0.54092805]
[1733285401971,0.8096,3671.9,3671.2,0.54092805]
[1733285402284,0.25482184,3671.8,3671.2,0.54092805]
[1733285402576,0.25482184,3671.7,3671.2,0.54092805]
[1733285402773,0.25482184,3671.6,3671.2,0.54092805]
[1733285403080,0.8096,3671.9,3671.2,0.54092805]
[1733285403274,0.25496683,3671.8,3671.2,0.54092805]
[1733285403479,0.25496683,3671.7,3671.2,0.54092805]
[1733285403631,0.25496683,3671.6,3671.2,0.87014847]
[1733285403972,0.8096,3671.9,3671.2,3.26480805]
[1733285404174,0.25497345,3671.8,3671.2,3.26480805]
[1733285404396,0.25497345,3671.7,3671.2,3.26480805]
[1733285404536,0.25497345,3671.6,3671.3,2.72376]
[1733285404730,0.8096,3671.9,3671.3,2.72376]
[1733285404937,0.25505645,3671.8,3671.4,0.32646881]
[1733285405132,0.25505645,3671.7,3671.4,3.05017881]
[1733285405332,0.25505645,3671.6,3671.4,3.05017881]
[1733285405602,0.7566,3672.3,3671.4,3.05017881]
[1733285405795,0.25515497,3672.2,3671.4,3.05017881]
[1733285406086,0.25515497,3672.1,3671.4,3.05017881]
[1733285406290,0.25515497,3672.0,3671.5,0.35911069]
[1733285406492,0.25515497,3671.9,3671.5,0.35911069]
[1733285406666,0.7566,3672.3,3671.5,0.35911069]
[1733285406667,0.25515497,3671.8,3671.5,0.35911069]
[1733285406845,0.25515497,3671.7,3671.5,0.35911069]
[1733285407042,0.25515497,3671.6,3671.5,0.35911069]
[1733285408789,0.25515497,3671.6,3671.5,3.08279069]
[1733285409318,0.7566,3672.3,3671.5,3.08279069]
[1733285409495,0.2553729,3672.2,3671.5,3.08279069]
[1733285409656,0.2553729,3672.1,3671.5,3.08279069]
[1733285409855,0.7566,3672.3,3671.5,3.08279069]
[1733285409856,0.2553729,3672.0,3671.5,3.08279069]
[1733285410082,0.2553729,3671.9,3671.6,0.30827907]
[1733285410395,0.2553729,3671.8,3671.6,0.30827907]
[1733285410595,0.2553729,3671.7,3671.6,0.30827907]
[1733285411159,0.2553729,3671.7,3671.2,0.54092805]
[1733285411355,1.17619406,3672.2,3671.3,2.72381]
[1733285411557,0.25533718,3672.1,3671.3,2.72381]
[1733285411800,0.25533718,3672.0,3671.3,2.72381]
[1733285412000,0.25533718,3671.9,3671.2,0.81362805]
[1733285412301,0.25533718,3671.8,3671.4,2.72374]
[1733285412531,1.17619406,3672.2,3671.4,3.05020681]
[1733285412803,0.25532835,3672.1,3671.4,3.05020681]
[1733285413100,0.25532835,3672.0,3671.6,2.72356]
[1733285413307,0.25532835,3671.9,3671.8,2.72345]
[1733285413462,0.7566,3672.3,3671.8,2.99851811]
[1733285413659,0.25527744,3672.2,3671.9,2.72338]
[1733285413859,0.25527744,3672.1,3671.9,2.72338]
[1733285414063,0.8036,3672.6,3671.9,2.72338]
[1733285414269,0.25526297,3672.5,3671.9,2.72338]
[1733285414490,0.25526297,3672.4,3671.9,2.72338]
[1733285414701,0.8036,3672.6,3671.9,2.72338]
[1733285414702,0.25526297,3672.3,3671.9,2.72338]
[1733285415003,0.8036,3672.6,3671.9,2.72338]
[1733285415207,0.25515144,3672.5,3671.9,2.72338]
[1733285415370,0.25515144,3672.4,3671.9,2.72338]
[1733285415664,0.8036,3672.6,3671.9,2.72338]
[1733285415665,0.25515144,3672.3,3671.9,2.72338]